lending/lending_fUSD_20260124
["ID","MTS","AMOUNT","RATE_DAILY","PERIOD"]
[403220563,1769270164758,49.66276507,0.00011474,2]
[403220564,1769270164816,450.33723493,0.00011474,2]
[403220565,1769270167949,500.0,0.00011474,2]
[403220566,1769270168497,505.17359471,0.00011474,2]
[403220567,1769270168595,500.0,0.00011474,2]
[403220568,1769270168711,500.0,0.00011474,2]
[403220569,1769270168793,373.20391951,0.00011474,2]
[403220570,1769270168918,500.0,0.00011474,2]
[403220571,1769270169034,500.0,0.00011474,2]
[403220572,1769270169112,445.06161521,0.00011474,2]
[403220573,1769270169350,861.49808097,0.00011474,2]
[403220574,1769270169460,861.49808097,0.00011474,2]
[403220575,1769270169557,861.49808097,0.00011474,2]
[403220576,1769270169652,861.49808097,0.00011474,2]
[403220577,1769270169786,861.49808097,0.00011474,2]
[403220578,1769270170187,861.49808097,0.00011474,2]
[403220579,1769270170312,557.24514982,0.00011474,2]
[403220580,1769270170379,304.25293115,0.00011474,2]
[403220581,1769270170478,861.49808097,0.00011474,2]
[403220582,1769270170559,861.49808097,0.00011474,2]
[403220583,1769270170673,861.49808097,0.00011474,2]
[403220584,1769270170774,861.49808097,0.00011474,2]
[403220585,1769270170898,861.49808097,0.00011474,2]
[403220586,1769270171023,861.49808097,0.00011474,2]
[403220587,1769270171112,861.49808097,0.00011474,2]
[403220588,1769270171234,861.49808097,0.00011474,2]
[403220589,1769270171338,861.49808097,0.00011474,2]
[403220590,1769270171425,861.49808097,0.00011474,2]
[403220591,1769270171520,861.49808097,0.00011474,2]
[403220592,1769270171605,219.27817818,0.00011474,2]
[403220593,1769270171664,642.21990279,0.00011474,2]
[403220594,1769270171755,861.49808097,0.00011474,2]
[403220595,1769270171879,861.49808097,0.00011474,2]
[403220596,1769270172082,861.49808097,0.00011474,2]
[403220597,1769270172205,861.49808097,0.00011474,2]
[403220598,1769270172298,861.49808097,0.00011474,2]
[403220599,1769270172413,861.49808097,0.00011474,2]
[403220600,1769270172492,861.49808097,0.00011474,2]
[403220601,1769270172574,861.49808097,0.00011474,2]
[403220602,1769270172685,861.49808097,0.00011474,2]
[403220603,1769270172775,861.49808097,0.00011474,2]
[403220604,1769270172943,742.80928751,0.00011474,2]
[403220605,1769270173007,118.68879346,0.00011474,2]
[403220606,1769270173182,861.49808097,0.00011474,2]
[403220607,1769270173271,861.49808097,0.00011474,2]
[403220608,1769270173385,861.49808097,0.00011474,2]
[403220609,1769270173496,861.49808097,0.00011474,2]
[403220610,1769270173609,861.49808097,0.00011474,2]
[403220611,1769270173690,861.49808097,0.00011474,2]
[403220612,1769270173800,861.49808097,0.00011474,2]
[403220613,1769270173886,861.49808097,0.00011474,2]
[403220614,1769270173976,861.49808097,0.00011474,2]
[403220615,1769270174063,861.49808097,0.00011474,2]
[403220616,1769270174166,861.49808097,0.00011474,2]
[403220617,1769270174259,404.84231587,0.00011474,2]
[403220618,1769270175469,-456.6557651,0.00011474,2]
[403220619,1769270175534,-500.0,0.00011474,2]
[403220620,1769270175594,-500.0,0.00011474,2]
[403220621,1769270175657,-500.0,0.00011474,2]
[403220622,1769270175722,-645.0,0.00011474,2]
[403220623,1769270175789,-500.0,0.00011474,2]
[403220624,1769270175856,-500.0,0.00011474,2]
[403220625,1769270175923,-500.0,0.00011474,2]
[403220626,1769270190706,-595.09543026,0.00011416,2]
[403220627,1769270192466,-320.41,0.000114,2]
[403220628,1769270193950,-245.75807457,0.00011416,2]
[403220629,1769270195642,-260.40167576,0.00011416,2]
[403220631,1769270212121,333.762604,0.00011416,2]
[403220635,1769270265064,2109.8056,0.00011375,2]
[403220636,1769270269897,-405.0,0.00011473,2]
[403220637,1769270269962,-647.55449987,0.00011473,2]
[403220638,1769270270029,-216.11795725,0.00011473,2]
[403220639,1769270270092,-304.41790839,0.00011473,2]
[403220640,1769270270167,-580.52772766,0.00011473,2]
[403220641,1769270270234,-300.0,0.00011473,2]
[403220642,1769270270302,-150.0,0.00011473,2]
[403220643,1769270270368,-300.0,0.00011473,2]
[403220644,1769270270430,-247.0,0.00011473,2]
[403220645,1769270270494,-195.0,0.00011473,2]
[403220646,1769270270563,-1574.54386298,0.00011474,2]
[403220647,1769270273038,1204.07697021,0.00011375,2]
[403220648,1769270273360,-1574.54386298,0.00011474,2]
[403220649,1769270273430,-1574.54386298,0.00011474,2]
[403220650,1769270273504,-1574.54386298,0.00011474,2]
[403220651,1769270274668,-1574.54386298,0.00011474,2]
[403220652,1769270274737,-1574.54386298,0.00011474,2]
[403220653,1769270274805,-1574.54386298,0.00011474,2]
[403220655,1769270275627,-1574.54386298,0.00011474,2]
[403220656,1769270275697,-1574.54386298,0.00011474,2]
[403220657,1769270275771,-1574.54386298,0.00011474,2]
[403220658,1769270275893,-1574.54386298,0.00011474,2]
[403220659,1769270275978,-1574.54386298,0.00011474,2]
[403220660,1769270276056,-1574.54386298,0.00011474,2]
[403220661,1769270276460,-1574.54386298,0.00011474,2]
[403220662,1769270276532,-1574.54386298,0.00011474,2]
[403220663,1769270276601,-1574.54386298,0.00011474,2]
[403220664,1769270276977,-1574.54386298,0.00011474,2]
[403220665,1769270277056,-1574.54386298,0.00011474,2]
[403220666,1769270277130,-1574.54386298,0.00011474,2]
[403220667,1769270277853,-1574.54386298,0.00011474,2]
[403220668,1769270277921,-1574.54386298,0.00011474,2]
[403220669,1769270277988,-1574.54386298,0.00011474,2]
[403220670,1769270278855,-1574.54386298,0.00011474,2]
[403220671,1769270278923,-1574.54386298,0.00011474,2]
[403220672,1769270278992,-1574.54386298,0.00011474,2]
[403220674,1769270282211,-300.0,0.00011473,2]
[403220675,1769270282286,-1574.54386298,0.00011474,2]
[403220676,1769270282355,-1574.54386298,0.00011474,2]
[403220677,1769270282427,-1306.85454429,0.00011474,2]
[403220678,1769270282578,-488.1254595,0.00011474,2]
[403220679,1769270282646,-1794.98000379,0.00011474,2]
[403220680,1769270282715,-1794.98000379,0.00011474,2]
[403220681,1769270282781,-48.85906205,0.00011474,2]
[403220682,1769270283092,-1746.12094174,0.00011474,2]
[403220683,1769270283164,-500.0,0.00011474,2]
[403220684,1769270283245,-500.0,0.00011474,2]
[403220685,1769270283316,-500.0,0.00011474,2]
[403220686,1769270283386,-500.0,0.00011474,2]
[403220687,1769270283458,-375.45047012,0.00011474,2]
[403220688,1769270283525,-195.0,0.00011474,2]
[403220694,1769270341577,300.0,0.00011474,2]
[403220696,1769270363495,1066.86717628,0.00011375,2]
[403220697,1769270363558,4283.25529887,0.00011375,2]
[403220699,1769270374544,1042.90230909,0.00011459,2]
[403220704,1769270402214,1200.0,0.00011474,2]
[403220705,1769270403587,150.0,0.00011474,2]
[403220707,1769270406499,300.0,0.00011474,2]
[403220708,1769270408740,200.0,0.00011474,2]
[403220711,1769270451144,151.0,0.00011474,2]
[403220712,1769270451326,247.53589181,0.00011474,2]
[403220715,1769270461496,300.0,0.00011474,2]
[403220718,1769270490176,8801.47410819,0.00011375,2]
[403220719,1769270490240,2281.25485464,0.00011375,2]
[403220720,1769270492887,4442.557,0.00011245,2]
[403220721,1769270493121,336.124,0.00011245,2]
[403220722,1769270532013,151.0,0.00011475,2]
[403220723,1769270532545,151.0,0.00011475,2]
[403220724,1769270532916,151.0,0.00011475,2]
[403220725,1769270533401,151.0,0.00011475,2]
[403220726,1769270534501,151.0,0.00011475,2]
[403220727,1769270535219,151.0,0.00011475,2]
[403220728,1769270537258,151.0,0.00011475,2]
[403220731,1769270539965,200.0,0.00011475,2]
[403220732,1769270541416,151.0,0.00011475,2]
[403220733,1769270541616,500.0,0.00011475,2]
[403220734,1769270543851,151.0,0.00011475,2]
[403220735,1769270543946,151.0,0.00011475,2]
[403220736,1769270544385,151.0,0.00011475,2]
[403220737,1769270544576,151.0,0.00011475,2]
[403220738,1769270544685,500.0,0.00011475,2]
[403220739,1769270545452,151.0,0.00011475,2]
[403220740,1769270545554,151.0,0.00011475,2]
[403220741,1769270545632,500.0,0.00011475,2]
[403220742,1769270546051,151.0,0.00011475,2]
[403220743,1769270546187,500.0,0.00011475,2]
[403220744,1769270546940,151.0,0.00011475,2]
[403220745,1769270547115,500.0,0.00011475,2]
[403220746,1769270547221,4884.01,0.00011465,2]
[403220747,1769270547283,10000.01,0.00011465,2]
[403220748,1769270547339,10000.01,0.00011465,2]
[403220749,1769270547393,10000.01,0.00011465,2]
[403220750,1769270547450,10000.01,0.00011465,2]
[403220751,1769270547505,10000.01,0.00011465,2]
[403220752,1769270547559,10000.01,0.00011465,2]
[403220753,1769270547615,9368.40216252,0.00011465,2]
[403220754,1769270548309,151.0,0.00011475,2]
[403220755,1769270548446,480.60783748,0.00011475,2]
[403220756,1769270548501,19.39216252,0.00011475,2]
[403220757,1769270549277,151.0,0.00011475,2]
[403220758,1769270549450,500.0,0.00011475,2]
[403220759,1769270555228,1053.56734896,0.00011375,2]
[403220760,1769270580484,294.8938,0.00011375,2]
[403220761,1769270586487,2500.0,0.00011375,2]
[403220764,1769270661658,462.2217,0.00011375,2]
[403220765,1769270673541,4315.8315,0.00011375,2]
[403220768,1769270733543,-150.0,0.00011474,2]
[403220769,1769270733606,-300.0,0.00011474,2]
[403220770,1769270733668,-300.0,0.00011474,2]
[403220771,1769270733739,-1200.0,0.00011474,2]
[403220772,1769270733803,-300.0,0.00011474,2]
[403220773,1769270736944,164.86293481,0.0001,5]
[403220774,1769270748851,-250.0,0.00011474,2]
[403220775,1769270761610,150.0,0.00011474,2]
[403220776,1769270764116,-195.0,0.00011474,2]
[403220777,1769270771395,300.0,0.00011474,2]
[403220780,1769270821308,300.0,0.00011474,2]
[403220781,1769270839169,952.25318181,0.00011375,2]
[403220782,1769270850463,150.0,0.00022137,120]
[403220783,1769270862188,3770.3484,0.00011375,2]
[403220786,1769270868295,2500.0,0.00011375,2]
[403220787,1769270873840,2477.40841819,0.00011375,2]
[403220788,1769270873897,2698.27691207,0.00011375,2]
[403220789,1769270875167,500.0,0.00011474,2]
[403220790,1769270875274,500.0,0.00011474,2]
[403220791,1769270876518,6301.73308793,0.00011375,2]
[403220792,1769270876578,7856.29154781,0.00011375,2]
[403220794,1769270887964,500.0,0.00011474,2]
[403220795,1769270888063,531.19851364,0.00011474,2]
[403220796,1769270888154,500.0,0.00011474,2]
[403220797,1769270888272,500.0,0.00011474,2]
[403220798,1769270888400,112.51993855,0.00011474,2]
[403220799,1769270888473,387.48006145,0.00011474,2]
[403220800,1769270889046,500.0,0.00011474,2]
[403220801,1769270889201,500.0,0.00011474,2]
[403220802,1769270889296,500.0,0.00011474,2]
[403220803,1769270889402,500.0,0.00011474,2]
[403220804,1769270889498,500.0,0.00011474,2]
[403220805,1769270889599,500.0,0.00011474,2]
[403220806,1769270889698,500.0,0.00011474,2]
[403220807,1769270889834,500.0,0.00011474,2]
[403220808,1769270889916,500.0,0.00011474,2]
[403220809,1769270890021,500.0,0.00011474,2]
[403220810,1769270890108,500.0,0.00011474,2]
[403220811,1769270890230,500.0,0.00011474,2]
[403220812,1769270890375,500.0,0.00011474,2]
[403220813,1769270890461,500.0,0.00011474,2]
[403220814,1769270890537,500.0,0.00011474,2]
[403220815,1769270890633,500.0,0.00011474,2]
[403220816,1769270890747,500.0,0.00011474,2]
[403220817,1769270890842,-250.0,0.00011475,2]
[403220818,1769270890905,-195.0,0.00011475,2]
[403220819,1769270891279,-500.0,0.00011475,2]
[403220820,1769270891343,-500.0,0.00011475,2]
[403220821,1769270891412,-500.0,0.00011475,2]
[403220822,1769270891476,-500.0,0.00011475,2]
[403220823,1769270891539,-500.0,0.00011475,2]
[403220824,1769270891605,-500.0,0.00011475,2]
[403220825,1769270891668,-500.0,0.00011475,2]
[403220826,1769270891730,-151.0,0.00011475,2]
[403220827,1769270891792,-500.0,0.00011475,2]
[403220828,1769270891854,-151.0,0.00011475,2]
[403220829,1769270891917,-6.01,0.00011475,2]
[403220830,1769270891994,500.0,0.00011474,2]
[403220831,1769270892070,500.0,0.00011474,2]
[403220832,1769270892201,112.52993855,0.00011474,2]
[403220833,1769270892267,365.05059593,0.00011474,2]
[403220834,1769270892361,500.0,0.00011474,2]
[403220835,1769270892453,-493.99,0.00011475,2]
[403220836,1769270892516,-151.0,0.00011475,2]
[403220837,1769270892576,-500.0,0.00011475,2]
[403220838,1769270892637,-151.0,0.00011475,2]
[403220839,1769270892699,-500.0,0.00011475,2]
[403220840,1769270892760,-151.0,0.00011475,2]
[403220841,1769270892821,-151.0,0.00011475,2]
[403220842,1769270892884,-500.0,0.00011475,2]
[403220843,1769270892948,-151.0,0.00011475,2]
[403220844,1769270893012,-500.0,0.00011475,2]
[403220845,1769270893079,-151.0,0.00011475,2]
[403220846,1769270893144,-500.0,0.00011475,2]
[403220847,1769270893212,-151.0,0.00011475,2]
[403220848,1769270893284,-500.0,0.00011475,2]
[403220849,1769270893351,-398.03,0.00011475,2]
[403220850,1769270893508,-101.97,0.00011475,2]
[403220851,1769270893575,-151.0,0.00011475,2]
[403220852,1769270893643,-151.0,0.00011475,2]
[403220853,1769270893712,-500.0,0.00011475,2]
[403220854,1769270893778,-500.0,0.00011475,2]
[403220855,1769270893845,-151.0,0.00011475,2]
[403220857,1769270893910,-500.0,0.00011475,2]
[403220858,1769270893977,-151.0,0.00011475,2]
[403220859,1769270894044,-200.0,0.00011475,2]
[403220860,1769270894110,-500.0,0.00011475,2]
[403220861,1769270894179,-151.0,0.00011475,2]
[403220862,1769270894247,-151.0,0.00011475,2]
[403220863,1769270894335,-500.0,0.00011475,2]
[403220864,1769270894424,-151.0,0.00011475,2]
[403220865,1769270894492,-500.0,0.00011475,2]
[403220866,1769270894556,-155.87085309,0.00011475,2]
[403220867,1769270894618,-151.0,0.00011475,2]
[403220868,1769270894679,-200.0,0.00011475,2]
[403220869,1769270894741,-117.32829382,0.00011475,2]
[403220870,1769270894893,-33.67170618,0.00011475,2]
[403220871,1769270894972,-151.0,0.00011475,2]
[403220872,1769270895035,-151.0,0.00011475,2]
[403220873,1769270895097,-500.0,0.00011475,2]
[403220874,1769270895161,-306.72319279,0.00011475,2]
[403220875,1769270895227,-200.0,0.00011475,2]
[403220876,1769270895299,-151.0,0.00011475,2]
[403220877,1769270895368,-151.0,0.00011475,2]
[403220878,1769270895435,-151.0,0.00011475,2]
[403220879,1769270895498,-151.0,0.00011475,2]
[403220880,1769270895563,-151.0,0.00011475,2]
[403220881,1769270895631,-151.0,0.00011475,2]
[403220882,1769270895696,-151.0,0.00011475,2]
[403220883,1769270895765,-151.0,0.00011475,2]
[403220884,1769270895828,-151.0,0.00011475,2]
[403220885,1769270895891,-151.0,0.00011475,2]
[403220886,1769270895956,-151.0,0.00011475,2]
[403220887,1769270896225,500.0,0.00011474,2]
[403220888,1769270896347,300.0,0.00011474,2]
[403220889,1769270896718,300.0,0.00011475,2]
[403220890,1769270896908,448.16559277,0.00011475,2]
[403220891,1769270898552,1000.0,0.00011474,2]
[403220892,1769270905918,866.0,0.00011474,2]
[403220893,1769270942055,300.0,0.00011474,2]
[403220894,1769270942398,150.0,0.00011474,2]
[403220895,1769270943490,129.05460929,0.00011474,2]
[403220896,1769270943547,86.94539071,0.00011474,2]
[403220900,1769270972438,3844.790966,0.00011417,2]
[403220901,1769270981078,186.54,9.667e-05,2]
[403220902,1769270984394,5881.73364329,0.00011375,2]
[403220903,1769270984460,10000.01,0.00011375,2]
[403220904,1769270984524,10000.01,0.00011375,2]
[403220905,1769270984559,974118.24635671,0.00011375,2]
[403220906,1769271007499,229.393993,7.945e-05,2]
[403220907,1769271012491,4930.5449,0.00011375,2]
[403220908,1769271018005,3149.27560019,0.00011396,2]
[403220909,1769271018083,1690.79550681,0.00011396,2]
[403220910,1769271018148,1561.98539386,0.00011396,2]
[403220911,1769271018370,377.94059275,0.00011396,2]
[403220912,1769271018488,183.95516542,0.00011396,2]
[403220919,1769271032362,-500.0,0.00011474,2]
[403220920,1769271032372,-10.11481069,0.00011474,2]
[403220921,1769271032511,-489.88518931,0.00011474,2]
[403220922,1769271032521,-500.0,0.00011474,2]
[403220923,1769271032530,-500.0,0.00011474,2]
[403220924,1769271032540,-500.0,0.00011474,2]
[403220925,1769271032549,-500.0,0.00011474,2]
[403220926,1769271032559,-500.0,0.00011474,2]
[403220927,1769271032568,-339.32291858,0.00011474,2]
[403220928,1769271032578,-500.0,0.00011474,2]
[403220929,1769271032587,-500.0,0.00011474,2]
[403220930,1769271032597,-500.0,0.00011474,2]
[403220931,1769271032606,-500.0,0.00011474,2]
[403220932,1769271032616,-500.0,0.00011474,2]
[403220933,1769271032626,-519.12084086,0.00011474,2]
[403220934,1769271032635,-300.0,0.00011474,2]
[403220935,1769271032645,-1200.0,0.00011474,2]
[403220936,1769271032655,-244.0,0.00011474,2]
[403220937,1769271032664,-217.2644,0.00011475,2]
[403220938,1769271032674,-195.0,0.00011475,2]
[403220939,1769271032683,-288.79187378,0.00011475,2]
[403220940,1769271032693,-151.0,0.00011475,2]
[403220941,1769271032703,-924.01,0.00011475,2]
[403220942,1769271032712,-15718.85878888,0.00011475,2]
[403220943,1769271032722,-150.99,0.00011479,2]
[403220944,1769271032731,-1468.61,0.00011479,2]
[403220945,1769271032740,-9999.99,0.00011479,2]
[403220946,1769271032749,-427.07,0.00011479,2]
[403220947,1769271032758,-195.0,0.0001148,2]
[403220948,1769271032767,-5476.37,0.00011495,2]
[403220949,1769271032777,-13867.97473391,0.00011616,2]
[403220950,1769271032788,-697.33435166,0.00011616,2]
[403220951,1769271032799,-2932.92904728,0.00011616,2]
[403220952,1769271032826,-500.0,0.00011616,2]
[403220973,1769271038398,-192.52791585,0.00011616,2]
[403220974,1769271038409,-187.50758997,0.00011616,2]
[403220975,1769271038419,-250.53186715,0.00011616,2]
[403220976,1769271038429,-150.00441442,0.00011736,2]
[403220977,1769271038439,-86.72448085,0.00011749,2]
[403220978,1769271038451,-837.28551915,0.00011749,2]
[403220979,1769271038461,-364.02,0.000119,2]
[403220980,1769271038471,-200.0,0.00012023,2]
[403220981,1769271038481,-200.0,0.00012023,2]
[403220982,1769271038491,-500.0,0.00012023,2]
[403220983,1769271038500,-523.99448518,0.00012023,2]
[403220984,1769271038542,-400.01551482,0.00012023,2]
[403220985,1769271038552,-2215.91443586,0.00012031,2]
[403220986,1769271038563,-956.24,0.00012031,2]
[403220996,1769271040732,-2659.561022,0.00012031,2]
[403220997,1769271040745,-10817.46454214,0.00012031,2]
[403220998,1769271040755,-192.52791586,0.00012031,2]
[403220999,1769271040765,-186.54,0.00012083,2]
[403221000,1769271040775,-158.9,0.00012095,2]
[403221001,1769271040784,-560.56817069,0.00012099,2]
[403221002,1769271040793,-307.8079596,0.00012099,2]
[403221003,1769271040803,-500.0,0.00012099,2]
[403221004,1769271040814,-250.0,0.00012099,2]
[403221005,1769271040823,-5175.68533025,0.000121,2]
[403221006,1769271040837,-14158.0246357,0.000121,2]
[403221007,1769271040847,-1500.0,0.00012175,2]
[403221008,1769271040858,-924.01,0.00012297,2]
[403221009,1769271040868,-233.54612135,0.00012433,2]
[403221010,1769271040877,-183.91,0.00012444,2]
[403221011,1769271040887,-222.33,0.00012491,2]
[403221012,1769271040898,-255.0,0.00012541,2]
[403221013,1769271040908,-200.0,0.00012571,2]
[403221014,1769271040917,-200.0,0.00012571,2]
[403221015,1769271040927,-500.0,0.00012571,2]
[403221016,1769271040936,-924.01,0.00012571,2]
[403221017,1769271040945,-420.0,0.00012603,2]
[403221018,1769271040955,-1005.0,0.00012616,2]
[403221019,1769271040964,-1680.0,0.00012621,2]
[403221020,1769271040974,-500.0,0.00012621,2]
[403221021,1769271040983,-300.0,0.00012621,2]
[403221022,1769271040992,-195.0,0.00012621,2]
[403221023,1769271041002,-250.0,0.00012621,2]
[403221024,1769271041011,-250.0,0.00012622,2]
[403221025,1769271041021,-195.0,0.00012622,2]
[403221026,1769271041035,-282.957,0.00012622,2]
[403221027,1769271041044,-195.0,0.00012622,2]
[403221028,1769271041054,-1105.0,0.00012641,2]
[403221029,1769271041063,-500.0,0.00012669,2]
[403221030,1769271041073,-5175.68533025,0.00012825,2]
[403221032,1769271041082,-14158.0246357,0.00012825,2]
[403221034,1769271041091,-924.01,0.00012845,2]
[403221035,1769271041101,-18129.99,0.00013105,2]
[403221037,1769271041110,-215.93880926,0.00013119,2]
[403221038,1769271041120,-500.0,0.00013119,2]
[403221040,1769271041129,-924.01,0.00013119,2]
[403221041,1769271041139,-924.01,0.00013393,2]
[403221043,1769271041148,-578.20924308,0.00013478,2]
[403221045,1769271041158,-854.2589148,0.00013478,2]
[403221046,1769271041168,-5432.0,0.00013478,2]
[403221047,1769271041178,-500.0,0.00013478,2]
[403221048,1769271041187,-500.0,0.00013478,2]
[403221049,1769271041196,-500.0,0.00013478,2]
[403221050,1769271041206,-500.0,0.00013478,2]
[403221051,1769271041215,-250.0,0.00013478,2]
[403221052,1769271041227,-500.0,0.00013478,2]
[403221053,1769271041237,-500.0,0.00013478,2]
[403221054,1769271041246,-250.0,0.00013478,2]
[403221056,1769271041255,-500.0,0.00013478,2]
[403221057,1769271041265,-500.0,0.00013478,2]
[403221058,1769271041274,-250.0,0.00013478,2]
[403221059,1769271041283,-500.0,0.00013478,2]
[403221060,1769271041293,-500.0,0.00013478,2]
[403221061,1769271041303,-250.0,0.00013478,2]
[403221062,1769271041312,-500.0,0.00013478,2]
[403221063,1769271041322,-500.0,0.00013478,2]
[403221064,1769271041332,-250.0,0.00013478,2]
[403221065,1769271041341,-500.0,0.00013478,2]
[403221066,1769271041351,-500.0,0.00013478,2]
[403221067,1769271041360,-301.96560903,0.00013478,2]
[403221068,1769271041370,-500.0,0.00013478,2]
[403221069,1769271041381,-500.0,0.00013478,2]
[403221070,1769271041390,-500.0,0.00013478,2]
[403221071,1769271041401,-500.0,0.00013478,2]
[403221072,1769271041410,-500.0,0.00013478,2]
[403221073,1769271041420,-500.0,0.00013478,2]
[403221074,1769271041430,-500.0,0.00013478,2]
[403221075,1769271041440,-500.0,0.00013478,2]
[403221076,1769271041450,-500.0,0.00013478,2]
[403221077,1769271041460,-500.0,0.00013478,2]
[403221078,1769271041471,-500.0,0.00013478,2]
[403221079,1769271041480,-500.0,0.00013478,2]
[403221080,1769271041490,-500.0,0.00013478,2]
[403221081,1769271041500,-500.0,0.00013478,2]
[403221082,1769271041510,-500.0,0.00013478,2]
[403221083,1769271041520,-500.0,0.00013478,2]
[403221084,1769271041529,-500.0,0.00013478,2]
[403221085,1769271041539,-343.10236963,0.00013478,2]
[403221086,1769271041548,-500.0,0.00013478,2]
[403221087,1769271041557,-500.0,0.00013478,2]
[403221088,1769271041567,-250.0,0.00013478,2]
[403221089,1769271041577,-250.0,0.00013478,2]
[403221090,1769271041588,-250.0,0.00013478,2]
[403221091,1769271041598,-250.0,0.00013478,2]
[403221092,1769271041608,-250.0,0.00013478,2]
[403221093,1769271041627,-174.61919141,0.00013478,2]
[403221094,1769271041638,-500.0,0.00013478,2]
[403221095,1769271041649,-151.0,0.00013478,2]
[403221096,1769271041660,-233.89856902,0.00013478,2]
[403221097,1769271041670,-500.0,0.00013478,2]
[403221098,1769271041680,-500.0,0.00013478,2]
[403221099,1769271041690,-322.6107,0.00013478,2]
[403221100,1769271041701,-500.0,0.00013478,2]
[403221101,1769271041710,-500.0,0.00013478,2]
[403221102,1769271041719,-500.0,0.00013478,2]
[403221103,1769271041730,-500.0,0.00013478,2]
[403221104,1769271041740,-500.0,0.00013478,2]
[403221105,1769271041752,-500.0,0.00013478,2]
[403221106,1769271041762,-500.0,0.00013478,2]
[403221107,1769271041772,-500.0,0.00013478,2]
[403221108,1769271041782,-250.0,0.00013478,2]
[403221109,1769271041792,-250.0,0.00013478,2]
[403221110,1769271041802,-250.0,0.00013478,2]
[403221111,1769271041811,-151.0,0.00013478,2]
[403221112,1769271041821,-250.0,0.00013478,2]
[403221113,1769271041831,-151.0,0.00013478,2]
[403221114,1769271041841,-312.60820425,0.00013478,2]
[403221115,1769271041850,-151.0,0.00013478,2]
[403221116,1769271041859,-151.0,0.00013478,2]
[403221117,1769271041869,-151.0,0.00013478,2]
[403221118,1769271041879,-151.0,0.00013478,2]
[403221119,1769271041891,-151.0,0.00013478,2]
[403221120,1769271041901,-151.0,0.00013478,2]
[403221121,1769271041911,-151.0,0.00013478,2]
[403221122,1769271041922,-151.0,0.00013478,2]
[403221123,1769271041933,-151.0,0.00013478,2]
[403221124,1769271041942,-5175.68533025,0.0001355,2]
[403221125,1769271041952,-14158.0246357,0.0001355,2]
[403221126,1769271041961,-500.0,0.00013667,2]
[403221127,1769271041971,-924.01,0.00013667,2]
[403221128,1769271041981,-500.0,0.00013698,2]
[403221129,1769271041991,-512.40415127,0.00013698,2]
[403221130,1769271042001,-500.0,0.00013698,2]
[403221131,1769271042012,-500.0,0.00013698,2]
[403221132,1769271042022,-500.0,0.00013698,2]
[403221133,1769271042031,-165.97106181,0.00013698,2]
[403221134,1769271042041,-500.0,0.00013698,2]
[403221135,1769271042050,-500.0,0.00013698,2]
[403221136,1769271042059,-500.0,0.00013698,2]
[403221137,1769271042069,-500.0,0.00013698,2]
[403221138,1769271042079,-500.0,0.00013698,2]
[403221139,1769271042088,-500.0,0.00013698,2]
[403221140,1769271042097,-593.61150569,0.00013698,2]
[403221141,1769271042107,-500.0,0.00013698,2]
[403221142,1769271042118,-500.0,0.00013698,2]
[403221143,1769271042128,-500.0,0.00013698,2]